[Event "MCR rapid mládeže 2023 U16"]
[Site "Harachov, Czech Republic"]
[Date "2023.09.10"]
[Round "7.20"]
[White "Mydlar, Matej"]
[Black "Walder, Hugo"]
[Result "1-0"]
[TimeControl "20min+5s/move"]
[WhiteElo "1711"]
[BlackElo "1403"]

1. e4 {[%clk 00:20:07]} {[%emt 00:00:01]} e5 {[%clk 00:20:08]} {[%emt
00:00:02]} 2. Nf3 {[%clk 00:20:11]} Nc6 {[%clk 00:20:12]} {[%emt 00:00:03]} 3.
Bb5 {[%clk 00:20:15]} {[%emt 00:00:01]} a6 {[%clk 00:20:15]} {[%emt 00:00:03]}
4. Ba4 {[%clk 00:20:19]} {[%emt 00:00:01]} b5 {[%clk 00:20:18]} {[%emt
00:00:02]} 5. Bb3 {[%clk 00:20:23]} d6 {[%clk 00:20:05]} {[%emt 00:00:19]} 6.
c3 {[%clk 00:20:17]} {[%emt 00:00:10]} Nf6 {[%clk 00:20:02]} {[%emt 00:00:08]}
7. O-O {[%clk 00:20:19]} {[%emt 00:00:03]} Be7 {[%clk 00:19:25]} {[%emt
00:00:42]} 8. d4 {[%clk 00:20:19]} {[%emt 00:00:05]} Bb7 {[%clk 00:18:24]}
{[%emt 00:01:07]} 9. Re1 {[%clk 00:20:18]} {[%emt 00:00:05]} O-O {[%clk
00:18:25]} {[%emt 00:00:05]} 10. Nbd2 {[%clk 00:20:15]} {[%emt 00:00:07]} h6
{[%clk 00:17:35]} {[%emt 00:00:55]} 11. Nf1 {[%clk 00:20:15]} {[%emt 00:00:04]}
Nd7 {[%clk 00:16:39]} {[%emt 00:01:03]} 12. Ng3 {[%clk 00:20:12]} {[%emt
00:00:07]} Bf6 {[%clk 00:15:59]} {[%emt 00:00:45]} 13. Be3 {[%clk 00:18:18]}
{[%emt 00:01:58]} Re8 {[%clk 00:14:57]} {[%emt 00:01:07]} 14. a4 {[%clk
00:13:37]} {[%emt 00:04:48]} Ne7 {[%clk 00:13:10]} {[%emt 00:01:50]} 15. d5
{[%clk 00:12:36]} {[%emt 00:01:07]} Nc5 {[%clk 00:12:12]} {[%emt 00:01:04]} 16.
Bc2 {[%clk 00:12:15]} {[%emt 00:00:24]} Ng6 {[%clk 00:12:02]} {[%emt 00:00:14]}
17. a5 {[%clk 00:11:50]} {[%emt 00:00:32]} Bc8 {[%clk 00:10:34]} {[%emt
00:01:31]} 18. h3 {[%clk 00:11:52]} {[%emt 00:00:05]} Bh4 {[%clk 00:09:39]}
{[%emt 00:00:57]} 19. b4 {[%clk 00:11:28]} {[%emt 00:00:32]} Nd7 {[%clk
00:08:25]} {[%emt 00:01:19]} 20. c4 {[%clk 00:09:09]} {[%emt 00:02:24]} Bxg3
{[%clk 00:07:33]} {[%emt 00:00:57]} 21. fxg3 {[%clk 00:09:05]} {[%emt
00:00:10]} bxc4 {[%clk 00:07:05]} {[%emt 00:00:33]} 22. Ba4 {[%clk 00:08:23]}
{[%emt 00:00:46]} Rf8 {[%clk 00:07:03]} {[%emt 00:00:07]} 23. Rb1 {[%clk
00:07:29]} {[%emt 00:00:59]} Nf6 {[%clk 00:06:46]} {[%emt 00:00:22]} 24. Bc6
{[%clk 00:07:23]} {[%emt 00:00:11]} Bd7 {[%clk 00:06:01]} {[%emt 00:00:51]} 25.
Bxa8 {[%clk 00:07:01]} {[%emt 00:00:27]} Qxa8 {[%clk 00:06:04]} {[%emt
00:00:02]} 26. Qc2 {[%clk 00:06:59]} {[%emt 00:00:06]} Bb5 {[%clk 00:05:00]}
{[%emt 00:01:09]} 27. Bf2 {[%clk 00:04:46]} {[%emt 00:02:17]} c6 {[%clk
00:04:42]} {[%emt 00:00:24]} 28. dxc6 {[%clk 00:04:44]} {[%emt 00:00:08]} Qxc6
{[%clk 00:04:44]} {[%emt 00:00:01]} 29. Rbc1 {[%clk 00:04:16]} {[%emt
00:00:33]} Rc8 {[%clk 00:04:21]} {[%emt 00:00:29]} 30. Re3 {[%clk 00:01:55]}
{[%emt 00:02:27]} d5 {[%clk 00:03:12]} {[%emt 00:01:13]} 31. exd5 {[%clk
00:01:52]} {[%emt 00:00:08]} Nxd5 {[%clk 00:03:15]} {[%emt 00:00:02]} 32. Re2
{[%clk 00:01:08]} {[%emt 00:00:49]} Nxb4 {[%clk 00:02:46]} {[%emt 00:00:34]} 33.
Qb1 {[%clk 00:01:08]} {[%emt 00:00:05]} Nd3 {[%clk 00:01:30]} {[%emt 00:01:21]}
34. Rc3 {[%clk 00:01:06]} {[%emt 00:00:06]} e4 {[%clk 00:00:57]} {[%emt
00:00:39]} 35. Nd4 {[%clk 00:01:01]} {[%emt 00:00:11]} Qd5 {[%clk 00:01:00]} 36.
Be3 {[%clk 00:00:39]} {[%emt 00:00:28]} Nge5 {[%clk 00:00:40]} {[%emt
00:00:25]} 37. Nf5 {[%clk 00:00:27]} {[%emt 00:00:18]} Kf8 {[%clk 00:00:21]}
{[%emt 00:00:21]} 38. g4 {[%clk 00:00:31]} {[%emt 00:00:03]} Rc6 {[%clk
00:00:16]} {[%emt 00:00:10]} 39. Qa1 {[%clk 00:00:22]} {[%emt 00:00:15]} Ng6
{[%clk 00:00:11]} {[%emt 00:00:10]} 40. Qa3+ {[%clk 00:00:22]} {[%emt
00:00:05]} Kg8 {[%clk 00:00:13]} {[%emt 00:00:01]} 41. h4 {[%clk 00:00:21]}
{[%emt 00:00:07]} Qe6 {[%clk 00:00:13]} {[%emt 00:00:04]} 42. h5 {[%clk
00:00:24]} {[%emt 00:00:03]} Nge5 {[%clk 00:00:10]} {[%emt 00:00:08]} 43. Ne7+
{[%emt 00:00:10]} Kh7 {[%emt 00:00:01]} 44. Nxc6 {[%clk 00:00:17]} {[%emt
00:00:01]} Qxc6 {[%clk 00:00:14]} {[%emt 00:00:01]} 45. Qe7 {[%clk 00:00:16]}
{[%emt 00:00:06]} f6 {[%clk 00:00:17]} {[%emt 00:00:02]} 46. g5 {[%clk
00:00:18]} {[%emt 00:00:03]} hxg5 {[%clk 00:00:20]} {[%emt 00:00:02]} 47. Qf8
{[%clk 00:00:12]} {[%emt 00:00:11]} Qd7 {[%clk 00:00:17]} {[%emt 00:00:08]} 48.
Rd2 {[%clk 00:00:12]} {[%emt 00:00:05]} Qg4 {[%clk 00:00:19]} {[%emt 00:00:02]}
49. Ra2 {[%clk 00:00:10]} {[%emt 00:00:08]} Qxh5 {[%clk 00:00:19]} {[%emt
00:00:05]} 50. Qa3 {[%clk 00:00:11]} {[%emt 00:00:04]} Kg6 {[%clk 00:00:23]}
{[%emt 00:00:01]} 51. Qd6 {[%clk 00:00:13]} {[%emt 00:00:03]} Qg4 {[%clk
00:00:26]} {[%emt 00:00:02]} 52. Ra1 {[%clk 00:00:10]} {[%emt 00:00:08]} Nf3+
{[%clk 00:00:28]} {[%emt 00:00:03]} 53. Kf1 {[%clk 00:00:14]} {[%emt 00:00:02]}
Nh2+ {[%emt 00:00:03]} 54. Qxh2 {[%clk 00:00:17]} {[%emt 00:00:01]} Ne5 {[%clk
00:00:31]} {[%emt 00:00:04]} 55. Bf2 {[%clk 00:00:18]} {[%emt 00:00:04]} Qf5
{[%clk 00:00:34]} {[%emt 00:00:02]} 56. Kg1 {[%clk 00:00:22]} {[%emt 00:00:01]}
Nd3 {[%clk 00:00:37]} {[%emt 00:00:02]} 57. Qg3 {[%clk 00:00:25]} {[%emt
00:00:02]} Nf4 {[%clk 00:00:40]} {[%emt 00:00:01]} 58. Re1 {[%clk 00:00:25]}
{[%emt 00:00:05]} Qe5 {[%clk 00:00:42]} {[%emt 00:00:04]} 59. Qe3 {[%clk
00:00:27]} {[%emt 00:00:03]} Nd5 {[%clk 00:00:45]} {[%emt 00:00:02]} 60. Qd4
{[%clk 00:00:29]} {[%emt 00:00:02]} Qxd4 {[%clk 00:00:47]} {[%emt 00:00:03]} 61.
Bxd4 {[%clk 00:00:33]} {[%emt 00:00:01]} Nxc3 {[%clk 00:00:51]} 62. Bxc3 {[%clk
00:00:37]} {[%emt 00:00:01]} Kf5 {[%clk 00:00:55]} {[%emt 00:00:01]} 63. Kf2
{[%clk 00:00:42]} g4 {[%clk 00:00:59]} {[%emt 00:00:02]} 64. g3 {[%clk
00:00:46]} g5 {[%clk 00:01:02]} {[%emt 00:00:01]} 65. Rd1 {[%clk 00:00:50]} Ke6
{[%clk 00:01:05]} {[%emt 00:00:03]} 66. Rd8 {[%clk 00:00:54]} {[%emt 00:00:02]}
f5 {[%clk 00:01:02]} {[%emt 00:00:08]} 67. Rg8 {[%clk 00:00:57]} Ba4 {[%clk
00:01:03]} {[%emt 00:00:04]} 68. Rxg5 {[%clk 00:01:01]} {[%emt 00:00:01]} Be8
{[%clk 00:01:04]} {[%emt 00:00:05]} 69. Rg7 {[%clk 00:01:04]} {[%emt 00:00:01]}
Bf7 {[%clk 00:01:07]} {[%emt 00:00:02]} 70. Rh7 {[%clk 00:01:07]} {[%emt
00:00:01]} Bg6 {[%clk 00:01:10]} {[%emt 00:00:03]} 71. Rh6 {[%clk 00:01:11]}
{[%emt 00:00:01]} Kf7 {[%clk 00:01:14]} 72. Ke3 {[%clk 00:01:15]} {[%emt
00:00:01]} f4+ {[%clk 00:01:07]} {[%emt 00:00:12]} 73. Kxf4 {[%clk 00:01:19]}
{[%emt 00:00:01]} e3 {[%clk 00:01:10]} {[%emt 00:00:02]} 74. Kxe3 {[%clk
00:01:22]} {[%emt 00:00:02]} Bd3 {[%clk 00:01:14]} {[%emt 00:00:01]} 75. Kf4
{[%clk 00:01:26]} {[%emt 00:00:01]} Be2 {[%clk 00:01:17]} {[%emt 00:00:02]} 76.
Be5 {[%clk 00:01:27]} {[%emt 00:00:04]} c3 {[%clk 00:01:20]} {[%emt 00:00:02]}
77. Bxc3 {[%clk 00:01:30]} {[%emt 00:00:02]} Ke7 {[%clk 00:01:25]} {[%emt
00:00:07]} 78. Rb6 {[%clk 00:01:36]} {[%emt 00:00:03]} Kd7 {[%clk 00:01:29]} 79.
Ke5 {[%clk 00:01:39]} {[%emt 00:00:01]} Kc7 {[%clk 00:01:33]} 80. Kd5 {[%clk
00:01:41]} {[%emt 00:00:04]} Kd7 {[%clk 00:01:35]} {[%emt 00:00:03]} 81. Rb7+
{[%clk 00:01:44]} {[%emt 00:00:02]} Kd8 {[%clk 00:01:38]} {[%emt 00:00:01]} 82.
Kd6 {[%clk 00:01:48]} {[%emt 00:00:02]} Kc8 {[%clk 00:01:42]} 83. Rh7 {[%clk
00:01:52]} {[%emt 00:00:02]} Kb8 {[%clk 00:01:46]} {[%emt 00:00:01]} 84. Kc6
{[%clk 00:01:55]} {[%emt 00:00:03]} Ka8 {[%clk 00:01:50]} 85. Kb6 {[%clk
00:01:59]} {[%emt 00:00:01]} Kb8 {[%clk 00:01:54]} {[%emt 00:00:02]} 86. Rh8#
{[%clk 00:02:03]} {[%emt 00:00:01]} 1-0

[Event "MCR rapid mládeže 2023 U16"]
[Site "Harachov, Czech Republic"]
[Date "2023.09.10"]
[Round "7.21"]
[White "Chernyy, Andrey"]
[Black "Kala, Jakub"]
[Result "1-0"]
[TimeControl "20min+5s/move"]
[WhiteElo "1582"]
[BlackElo "1357"]

1. e4 {[%clk 00:20:08]} {[%emt 00:00:01]} c5 {[%clk 00:20:09]} {[%emt
00:00:01]} 2. Nf3 {[%clk 00:20:12]} {[%emt 00:00:01]} Nc6 {[%clk 00:20:13]}
{[%emt 00:00:01]} 3. Bb5 {[%clk 00:20:15]} {[%emt 00:00:02]} g6 {[%clk
00:20:13]} {[%emt 00:00:05]} 4. Bxc6 {[%clk 00:20:15]} {[%emt 00:00:06]} bxc6
{[%clk 00:20:13]} {[%emt 00:00:05]} 5. d3 {[%clk 00:20:18]} {[%emt 00:00:01]}
Bg7 {[%clk 00:20:09]} {[%emt 00:00:08]} 6. Nc3 {[%clk 00:20:20]} {[%emt
00:00:03]} d6 {[%clk 00:19:55]} {[%emt 00:00:20]} 7. h3 {[%clk 00:20:22]}
{[%emt 00:00:03]} e5 {[%clk 00:19:16]} {[%emt 00:00:44]} 8. Be3 {[%clk
00:20:18]} {[%emt 00:00:08]} Ne7 {[%clk 00:18:44]} {[%emt 00:00:38]} 9. Qd2
{[%clk 00:20:12]} {[%emt 00:00:11]} Rb8 {[%clk 00:18:06]} {[%emt 00:00:43]} 10.
Rb1 {[%clk 00:19:48]} {[%emt 00:00:29]} Qa5 {[%clk 00:16:52]} {[%emt 00:01:19]}
11. O-O {[%clk 00:19:00]} {[%emt 00:00:52]} O-O {[%clk 00:16:19]} {[%emt
00:00:39]} 12. Bh6 {[%clk 00:18:22]} {[%emt 00:00:42]} f5 {[%clk 00:15:06]}
{[%emt 00:01:19]} 13. Bxg7 {[%clk 00:18:02]} {[%emt 00:00:25]} Kxg7 {[%clk
00:15:09]} {[%emt 00:00:02]} 14. exf5 {[%clk 00:17:42]} {[%emt 00:00:25]} Nxf5
{[%clk 00:14:48]} {[%emt 00:00:26]} 15. Qe2 {[%clk 00:16:03]} {[%emt 00:01:45]}
Nd4 {[%clk 00:13:16]} {[%emt 00:01:37]} 16. Nxd4 {[%clk 00:15:40]} {[%emt
00:00:27]} cxd4 {[%clk 00:12:48]} {[%emt 00:00:33]} 17. Ne4 {[%clk 00:15:07]}
{[%emt 00:00:38]} Qd8 {[%clk 00:11:25]} {[%emt 00:01:28]} 18. c3 {[%clk
00:14:14]} {[%emt 00:00:57]} dxc3 {[%clk 00:10:13]} {[%emt 00:01:18]} 19. bxc3
{[%clk 00:14:16]} {[%emt 00:00:03]} Ba6 {[%clk 00:09:47]} {[%emt 00:00:30]} 20.
Rxb8 {[%clk 00:13:08]} {[%emt 00:01:13]} Qxb8 {[%clk 00:09:51]} {[%emt
00:00:02]} 21. Rd1 {[%clk 00:13:00]} {[%emt 00:00:13]} Qc7 {[%clk 00:08:34]}
{[%emt 00:01:23]} 22. Qg4 {[%clk 00:11:25]} {[%emt 00:01:39]} Rf4 {[%clk
00:07:30]} {[%emt 00:01:09]} 23. Qe6 {[%clk 00:08:09]} {[%emt 00:03:14]} d5
{[%clk 00:03:11]} {[%emt 00:04:31]} 24. Nd6 {[%clk 00:07:02]} {[%emt 00:01:11]}
Kh6 {[%clk 00:01:40]} {[%emt 00:01:37]} 25. Qxe5 {[%clk 00:06:22]} {[%emt
00:00:45]} Rh4 {[%clk 00:00:23]} {[%emt 00:01:22]} 26. Nf5+ {[%clk 00:06:07]}
{[%emt 00:00:19]} 1-0

[Event "MCR rapid mládeže 2023 U16"]
[Site "Harachov, Czech Republic"]
[Date "2023.09.10"]
[Round "7.22"]
[White "Knapek, Jan"]
[Black "Kozdon, Marek"]
[Result "0-1"]
[TimeControl "20min+5s/move"]
[WhiteElo "1314"]
[BlackElo "1548"]

1. e4 {[%clk 00:20:05]} {[%emt 00:00:04]} c5 {[%clk 00:19:57]} {[%emt
00:00:13]} 2. Nf3 {[%clk 00:20:08]} {[%emt 00:00:02]} e6 {[%clk 00:20:00]}
{[%emt 00:00:02]} 3. Nc3 {[%clk 00:20:05]} {[%emt 00:00:08]} a6 {[%clk
00:19:59]} {[%emt 00:00:07]} 4. d4 {[%clk 00:19:53]} {[%emt 00:00:16]} cxd4
{[%clk 00:19:59]} {[%emt 00:00:05]} 5. Nxd4 {[%clk 00:19:51]} {[%emt 00:00:07]}
b5 {[%clk 00:19:59]} {[%emt 00:00:05]} 6. a3 {[%clk 00:18:54]} {[%emt
00:01:02]} Bb7 {[%clk 00:19:42]} {[%emt 00:00:23]} 7. Bd3 {[%emt 00:00:28]} Qc7
{[%clk 00:19:14]} {[%emt 00:00:31]} 8. O-O {[%clk 00:17:25]} {[%emt 00:01:11]}
d6 {[%clk 00:17:59]} {[%emt 00:01:21]} 9. Kh1 {[%clk 00:14:15]} {[%emt
00:03:14]} Nf6 {[%clk 00:17:15]} {[%emt 00:00:50]} 10. f4 {[%clk 00:13:24]}
{[%emt 00:00:56]} Nbd7 {[%clk 00:17:19]} {[%emt 00:00:01]} 11. f5 {[%clk
00:10:57]} {[%emt 00:02:32]} e5 {[%clk 00:17:04]} {[%emt 00:00:20]} 12. Nb3
{[%clk 00:10:15]} {[%emt 00:00:44]} Rc8 {[%clk 00:16:17]} {[%emt 00:00:55]} 13.
Be3 {[%clk 00:08:24]} {[%emt 00:01:52]} Nb6 {[%clk 00:15:18]} {[%emt 00:01:08]}
14. Qd2 {[%clk 00:05:03]} {[%emt 00:03:22]} Nc4 {[%clk 00:14:25]} {[%emt
00:01:02]} 15. Bxc4 {[%clk 00:04:28]} {[%emt 00:00:40]} Qxc4 {[%clk 00:13:50]}
{[%emt 00:00:41]} 16. Na5 {[%clk 00:03:57]} {[%emt 00:00:36]} Qc7 {[%clk
00:13:32]} {[%emt 00:00:23]} 17. Nxb7 {[%clk 00:03:53]} {[%emt 00:00:09]} Qxb7
{[%clk 00:13:35]} {[%emt 00:00:02]} 18. Qd3 {[%clk 00:03:21]} {[%emt 00:00:28]}
h6 {[%clk 00:13:35]} {[%emt 00:00:14]} 19. Rfe1 {[%clk 00:01:38]} {[%emt
00:01:43]} Be7 {[%clk 00:13:13]} {[%emt 00:00:31]} 20. h3 {[%clk 00:01:04]}
{[%emt 00:00:39]} O-O {[%clk 00:12:52]} {[%emt 00:00:25]} 21. Bd2 {[%clk
00:00:50]} {[%emt 00:00:15]} Kh8 {[%clk 00:12:32]} {[%emt 00:00:30]} 22. Qg3
{[%clk 00:00:14]} {[%emt 00:00:39]} Rg8 {[%clk 00:12:15]} {[%emt 00:00:24]} 23.
Qh4 {[%clk 00:00:00]} {[%emt 00:00:12]} 0-1

[Event "MCR rapid mládeže 2023 U16"]
[Site "Harachov, Czech Republic"]
[Date "2023.09.10"]
[Round "7.23"]
[White "Kusova, Nikola"]
[Black "Vancakova, Veronika"]
[Result "1-0"]
[TimeControl "20min+5s/move"]
[WhiteElo "1247"]
[BlackElo "1433"]

1. e4 {[%clk 00:20:08]} {[%emt 00:00:01]} d6 {[%clk 00:20:09]} {[%emt
00:00:01]} 2. d4 {[%clk 00:20:11]} {[%emt 00:00:01]} Nf6 {[%clk 00:20:13]}
{[%emt 00:00:02]} 3. Nc3 {[%clk 00:20:14]} {[%emt 00:00:01]} g6 {[%clk
00:20:18]} 4. f4 {[%clk 00:20:16]} {[%emt 00:00:04]} Bg7 {[%clk 00:20:21]}
{[%emt 00:00:02]} 5. Nf3 {[%clk 00:20:19]} {[%emt 00:00:02]} O-O {[%clk
00:20:23]} {[%emt 00:00:03]} 6. Bd3 {[%clk 00:20:17]} {[%emt 00:00:06]} Nc6
{[%clk 00:20:14]} {[%emt 00:00:15]} 7. O-O {[%clk 00:20:18]} {[%emt 00:00:04]}
e5 {[%clk 00:20:04]} {[%emt 00:00:16]} 8. fxe5 {[%clk 00:20:13]} {[%emt
00:00:10]} dxe5 {[%clk 00:20:07]} {[%emt 00:00:02]} 9. d5 {[%clk 00:20:07]}
{[%emt 00:00:10]} Ne7 {[%clk 00:20:10]} {[%emt 00:00:02]} 10. Ne2 {[%clk
00:19:29]} {[%emt 00:00:43]} Nd7 {[%clk 00:17:32]} {[%emt 00:02:43]} 11. c4
{[%clk 00:17:52]} {[%emt 00:01:42]} a5 {[%clk 00:15:23]} {[%emt 00:02:14]} 12.
Be3 {[%clk 00:14:09]} {[%emt 00:03:48]} h6 {[%clk 00:15:06]} {[%emt 00:00:22]}
13. Qd2 {[%clk 00:13:23]} {[%emt 00:00:51]} Kh7 {[%clk 00:14:50]} {[%emt
00:00:21]} 14. Kh1 {[%clk 00:11:18]} {[%emt 00:02:11]} f5 {[%clk 00:14:01]}
{[%emt 00:00:53]} 15. g3 {[%clk 00:09:49]} {[%emt 00:01:34]} fxe4 {[%clk
00:10:12]} {[%emt 00:03:54]} 16. Bxe4 {[%clk 00:09:50]} {[%emt 00:00:04]} Nf6
{[%clk 00:10:10]} {[%emt 00:00:07]} 17. Bc2 {[%clk 00:09:02]} {[%emt 00:00:53]}
Ng4 {[%clk 00:08:39]} {[%emt 00:01:36]} 18. Rad1 {[%clk 00:08:15]} {[%emt
00:00:50]} Nxe3 {[%clk 00:08:31]} {[%emt 00:00:15]} 19. Qxe3 {[%clk 00:08:18]}
{[%emt 00:00:03]} Bf5 {[%clk 00:08:08]} {[%emt 00:00:28]} 20. Bxf5 {[%clk
00:07:28]} {[%emt 00:00:54]} Nxf5 {[%clk 00:08:11]} {[%emt 00:00:02]} 21. Qe4
{[%clk 00:05:59]} {[%emt 00:01:30]} Nd6 {[%clk 00:07:18]} {[%emt 00:01:02]} 22.
Qc2 {[%clk 00:05:40]} {[%emt 00:00:24]} Nf5 {[%clk 00:05:19]} {[%emt 00:02:04]}
23. Qe4 {[%clk 00:05:25]} {[%emt 00:00:20]} Qe7 {[%clk 00:05:09]} {[%emt
00:00:15]} 24. Nc3 {[%clk 00:04:47]} {[%emt 00:00:43]} Nd6 {[%clk 00:04:59]}
{[%emt 00:00:15]} 25. Qe2 {[%clk 00:04:38]} {[%emt 00:00:14]} Rae8 {[%clk
00:02:37]} {[%emt 00:02:27]} 26. Rde1 {[%clk 00:04:31]} {[%emt 00:00:11]} e4
{[%clk 00:02:28]} {[%emt 00:00:14]} 27. c5 {[%clk 00:04:09]} {[%emt 00:00:27]}
Bxc3 {[%clk 00:01:27]} {[%emt 00:01:06]} 28. cxd6 {[%clk 00:04:12]} {[%emt
00:00:02]} Qxd6 {[%clk 00:01:14]} {[%emt 00:00:17]} 29. bxc3 {[%clk 00:03:11]}
{[%emt 00:01:07]} exf3 {[%clk 00:01:14]} {[%emt 00:00:05]} 30. Qd2 {[%clk
00:02:40]} {[%emt 00:00:36]} Rxe1 {[%clk 00:00:47]} {[%emt 00:00:32]} 31. Rxe1
{[%clk 00:02:44]} f2 {[%clk 00:00:41]} {[%emt 00:00:12]} 32. Rf1 {[%clk
00:02:48]} {[%emt 00:00:01]} Qf6 {[%clk 00:00:36]} {[%emt 00:00:10]} 33. Qd3
{[%clk 00:02:25]} {[%emt 00:00:28]} Qf3+ {[%clk 00:00:25]} {[%emt 00:00:17]} 34.
Qxf3 {[%clk 00:02:28]} {[%emt 00:00:01]} Rxf3 {[%clk 00:00:29]} {[%emt
00:00:01]} 35. c4 {[%clk 00:02:26]} {[%emt 00:00:07]} Rc3 {[%clk 00:00:26]}
{[%emt 00:00:07]} 36. Rxf2 {[%clk 00:02:24]} {[%emt 00:00:08]} Rxc4 {[%clk
00:00:30]} {[%emt 00:00:01]} 37. Rd2 {[%clk 00:02:13]} {[%emt 00:00:16]} Kg7
{[%clk 00:00:26]} {[%emt 00:00:10]} 38. Kg2 {[%clk 00:02:16]} Kf6 {[%clk
00:00:30]} {[%emt 00:00:01]} 39. Kf3 {[%clk 00:02:20]} {[%emt 00:00:01]} Ke5
{[%clk 00:00:32]} {[%emt 00:00:03]} 40. Ke3 {[%clk 00:01:29]} {[%emt 00:00:56]}
Re4+ {[%clk 00:00:22]} {[%emt 00:00:15]} 41. Kf3 {[%clk 00:01:31]} {[%emt
00:00:02]} Rd4 {[%clk 00:00:20]} {[%emt 00:00:08]} 42. Rc2 {[%clk 00:01:35]}
{[%emt 00:00:01]} Kd6 {[%clk 00:00:20]} {[%emt 00:00:05]} 43. Rb2 {[%clk
00:01:10]} {[%emt 00:00:29]} b6 {[%clk 00:00:20]} {[%emt 00:00:06]} 44. Re2
{[%clk 00:00:53]} {[%emt 00:00:22]} Rxd5 {[%clk 00:00:22]} {[%emt 00:00:03]} 45.
Rc2 {[%clk 00:00:45]} {[%emt 00:00:13]} c5 {[%clk 00:00:12]} {[%emt 00:00:15]}
46. Rb2 {[%clk 00:00:49]} Kc6 {[%clk 00:00:16]} {[%emt 00:00:01]} 47. Ke4
{[%clk 00:00:47]} {[%emt 00:00:07]} Rd6 {[%clk 00:00:13]} {[%emt 00:00:08]} 48.
Ke5 {[%clk 00:00:38]} {[%emt 00:00:14]} Rd4 {[%clk 00:00:10]} {[%emt 00:00:08]}
49. Rf2 {[%clk 00:00:35]} {[%emt 00:00:08]} Kb5 {[%clk 00:00:09]} {[%emt
00:00:06]} 50. Rf6 {[%clk 00:00:20]} {[%emt 00:00:20]} 1-0